fUSD/lending_fUSD_20251002
["ID","MTS","AMOUNT","RATE_DAILY","PERIOD"]
[388854433,1759428680197,-1203.0,0.00031958,120]
[388854434,1759428680229,-1203.0,0.00031958,120]
[388854435,1759428680259,-23452.78539031,0.00031958,120]
[388854436,1759428680291,-10319.98,0.00031958,60]
[388854437,1759428680322,-13275.86822321,0.00031958,60]
[388854438,1759428680351,-10905.35391283,0.00031958,120]
[388854439,1759428680382,-4184.68459173,0.00031958,120]
[388854440,1759428680411,-514.5529302,0.00031958,120]
[388854441,1759428680441,-532.01231663,0.00031958,95]
[388854442,1759428680473,-362675.81,0.00031958,90]
[388854443,1759428680503,-2383.31429905,0.00031958,120]
[388854444,1759428680533,-1365.21374271,0.00031958,120]
[388854445,1759428680565,-85278.386875,0.00031958,120]
[388854446,1759428680595,-601.0,0.00031958,120]
[388854447,1759428680624,-1803.0,0.00031958,120]
[388854448,1759428680655,-1761.93,0.00031958,120]
[388854449,1759428680687,-1761.93,0.00031958,120]
[388854450,1759428680722,-1761.93,0.00031958,120]
[388854451,1759428680760,-1761.93,0.00031958,120]
[388854452,1759428680793,-1761.93,0.00031958,120]
[388854453,1759428680823,-1761.93,0.00031958,120]
[388854454,1759428680854,-1761.93,0.00031958,120]
[388854455,1759428680884,-1761.93,0.00031958,120]
[388854456,1759428680913,-1761.93,0.00031958,120]
[388854457,1759428680944,-1761.93,0.00031958,120]
[388854458,1759428680976,-1761.93,0.00031958,120]
[388854459,1759428681008,-1761.93,0.00031958,120]
[388854460,1759428681037,-1761.93,0.00031958,120]
[388854461,1759428681069,-1761.93,0.00031958,120]
[388854462,1759428681100,-1761.93,0.00031958,120]
[388854463,1759428681129,-1761.93,0.00031958,120]
[388854464,1759428681157,-1761.93,0.00031958,120]
[388854465,1759428681186,-1761.93,0.00031958,120]
[388854466,1759428681216,-1761.93,0.00031958,120]
[388854467,1759428681248,-1761.93,0.00031958,120]
[388854468,1759428681279,-1761.93,0.00031958,120]
[388854469,1759428681311,-1761.93,0.00031958,120]
[388854470,1759428681344,-1761.93,0.00031958,120]
[388854471,1759428681374,-1762.04087317,0.00031958,120]
[388854472,1759428681402,-3000.0,0.00031958,120]
[388854473,1759428681430,-481.76508275,0.00031958,120]
[388854474,1759428681463,-426.69410193,0.00031958,120]
[388854475,1759428681495,-581.71917505,0.00031958,60]
[388854476,1759428681781,-62921.879064,0.00031958,120]
[388854477,1759428681811,-20874.98847669,0.00031958,120]
[388854478,1759428681843,-645.27780785,0.00031958,80]
[388854479,1759428681872,-999.999998,0.00031958,120]
[388854480,1759428681901,-172.4801129,0.00031958,60]
[388854481,1759428681932,-5087.27766086,0.00031958,120]
[388854482,1759428681962,-5255.67660835,0.00031958,120]
[388854483,1759428681992,-4100.44348273,0.00031958,120]
[388854484,1759428682021,-4402.0,0.00031958,120]
[388854485,1759428682050,-200.0,0.00031958,120]
[388854486,1759428682690,1969.64260776,0.00031958,60]
[388854487,1759428689362,656.25332,0.00031958,60]
[388854488,1759428727832,2404.0,0.00031958,60]
[388854500,1759428771972,-90.0,0.000186,2]
[388854501,1759428778982,-70.0,0.000186,2]
[388854502,1759428884687,500.0,0.00030136,120]
[388854503,1759428949402,3621.3200009,0.00031958,60]
[388854505,1759428961471,200.0,0.00031958,120]
[388855510,1759429199879,3000.0,0.00032007,60]
[388855511,1759429220666,10000.0,0.00032007,60]
[388855512,1759429252471,8432.78099016,0.00032007,60]
[388855513,1759429262167,200.0,0.00032007,120]
[388855514,1759429316007,2649.40329045,0.00032007,60]
[388855515,1759429318421,40954.46915007,0.00032007,60]
[388855516,1759429319420,159.42,9.938e-05,2]
[388855517,1759429319676,159.42,0.0001118,2]
[388855518,1759429319905,159.42,0.00012422,2]
[388855519,1759429320233,159.42,0.00013664,2]
[388855520,1759429320348,159.42,0.00014906,2]
[388855521,1759429320572,159.42,0.00016148,2]
[388855522,1759429389091,2500.28754191,0.00030137,120]
[388855523,1759429453785,1000.0,0.00030137,120]
[388855524,1759429467057,500.0,0.00030136,120]
[388855698,1759429554942,-261.00719843,0.000169,2]
[388855699,1759429554969,-800.03927775,0.00016999,2]
[388855700,1759429561485,200.0,0.00032008,120]
[388855701,1759429562016,-173.55222225,0.00016999,2]
[388855702,1759429576338,-3438.54620879,0.00017,2]
[388855703,1759429583381,-500.0,0.00017,2]
[388855704,1759429583409,-250.0,0.00017,2]
[388855705,1759429583482,-73.655182,0.00017,2]
[388855706,1759429590487,-680.60795814,0.00017,2]
[388855707,1759429597824,-500.0,0.00016999,2]
[388855708,1759429598155,-500.0,0.00016999,2]
[388855709,1759429598212,-249.72951265,0.00016999,2]
[388855710,1759429598449,-289.73837156,0.00017,2]
[388855711,1759429604852,-153.84,0.00016999,2]
[388855733,1759429627710,-125.07364107,0.00016998,2]
[388855734,1759429628540,-174.92635893,0.00016998,2]
[388855851,1759429635795,3000.0,0.0003201,120]
[388855880,1759429640878,300.0,0.000165,6]
[388855881,1759429642088,-140.11766947,0.000169,2]
[388855882,1759429642130,-19.76466106,0.000169,2]
[388855883,1759429643654,600.0,0.000166,6]
[388855884,1759429649056,-176.62857379,0.000167,6]
[388857050,1759429723149,498.58500632,0.0003201,120]
[388857051,1759429773852,10663.22355173,0.0003201,60]
[388857085,1759429831515,-623.53822471,0.000167,6]
[388857092,1759429831575,-199.8332015,0.000167,6]
[388857093,1759429831584,-64.37467497,0.00016725,2]
[388857094,1759429831622,-130.62532503,0.00016725,2]
[388857095,1759429831631,-425.07364107,0.0001675,2]
[388857096,1759429831641,-1300.0,0.000168,6]
[388857097,1759429831650,-212.14860925,0.000168,2]
[388857098,1759429831660,-150.0,0.00016813,2]
[388857099,1759429831670,-1200.0,0.00016899,2]
[388857100,1759429831679,-300.0,0.00016899,2]
[388857101,1759429831689,-1700.0,0.000169,6]
[388857102,1759429831699,-732.96759319,0.000169,2]
[388857103,1759429831709,-204.24526274,0.000169,2]
[388857104,1759429831720,-300.98814543,0.000169,2]
[388857105,1759429831729,-165.51599042,0.000169,2]
[388857106,1759429831740,-4074.35954619,0.000169,2]
[388857107,1759429831750,-658.52932602,0.000169,2]
[388857108,1759429831760,-524.20787917,0.000169,2]
[388857109,1759429831770,-296.33868149,0.000169,2]
[388857110,1759429831785,-328.82125694,0.000169,2]
[388857111,1759429831794,-108.72779563,0.00016972,2]
[388857112,1759429831814,-441.27220437,0.00016972,2]
[388857113,1759429831824,-500.0,0.00016973,2]
[388857114,1759429831834,-500.0,0.00016973,2]
[388857115,1759429831844,-500.0,0.00016973,2]
[388857116,1759429831854,-500.0,0.00016973,2]
[388857117,1759429831864,-500.0,0.00016973,2]
[388857118,1759429831874,-221.86664329,0.00016973,2]
[388857119,1759429831883,-616.92723909,0.00016973,2]
[388857120,1759429831893,-500.41506691,0.00016973,2]
[388857121,1759429831902,-160.01492082,0.00016973,2]
[388857122,1759429831913,-284.24314817,0.00016973,2]
[388857124,1759429831924,-500.0,0.00016973,2]
[388857126,1759429831934,-503.81488543,0.00016973,2]
[388857128,1759429831945,-500.0,0.00016973,2]
[388857130,1759429831956,-500.0,0.00016973,2]
[388857132,1759429831966,-500.0,0.00016973,2]
[388857134,1759429831975,-197.84,0.00016989,2]
[388857136,1759429831986,-295.44977946,0.00016989,2]
[388857138,1759429831996,-330.31276588,0.00016998,2]
[388857140,1759429832006,-547.73393231,0.00016998,2]
[388857142,1759429832015,-574.04172013,0.00016998,2]
[388857144,1759429832025,-500.0,0.00016998,2]
[388857146,1759429832035,-500.0,0.00016998,2]
[388857148,1759429832045,-500.0,0.00016998,2]
[388857150,1759429832054,-360.62722351,0.00016998,2]
[388857152,1759429832064,-500.0,0.00017,2]
[388857154,1759429832074,-540299.47642914,0.00017,2]
[388857156,1759429832086,-887.7,0.00017,2]
[388857161,1759429832195,-8891.54369894,0.00017,2]
[388857162,1759429832219,-1513.76451154,0.00017,2]
[388857163,1759429832240,-218505.0202971,0.00017,2]
[388857164,1759429832252,-633.53491241,0.00017,2]
[388857165,1759429832264,-1665.07505448,0.00017,2]
[388857177,1759429835983,345.18,0.00026356,120]
[388857185,1759429838489,-383.41375262,0.00016999,2]
[388857186,1759429838500,-401.82920409,0.00016999,2]
[388857187,1759429838510,-500.0,0.00016999,2]
[388857188,1759429838520,-302.43905646,0.00016999,2]
[388857189,1759429838530,-231.21893612,0.00016999,2]
[388857190,1759429838540,-500.0,0.00016999,2]
[388857191,1759429838549,-18200.09905071,0.00017,2]
[388857192,1759429838607,-4451.59414688,0.00017,2]
[388857193,1759429839468,-478.76814345,0.00017,2]
[388857194,1759429839480,-1043.26593278,0.00017,2]
[388857195,1759429839700,-2044.4589975,0.00017,2]
[388857200,1759429842582,-14785.35589497,0.00017,2]
[388857201,1759429842701,-6163.33042802,0.00017,2]
[388857202,1759429842814,-2510809.89753382,0.00017,2]
[388857203,1759429842826,-868349.98493382,0.00017,2]
[388857212,1759429845473,-4490.45076493,0.00017,2]
[388857213,1759429845485,-722.0,0.00017,2]
[388857214,1759429845742,-385.47304823,0.00017,2]
[388857215,1759429845756,-2002.24999999,0.00017,2]
[388857216,1759429845767,-1389.19999,0.00017,2]
[388857217,1759429845780,-1098.0,0.00017,2]
[388857218,1759429845804,-5560.38387075,0.00017,2]
[388857219,1759429845815,-1201.8,0.00017,2]
[388857220,1759429845908,-280.45,0.00017,2]
[388857702,1759429861997,200.0,0.0003201,120]
[388858636,1759429875230,1037.75956879,0.0003201,120]
[388858643,1759430032268,500.0,0.00030136,120]
[388858644,1759430134044,433.31342733,0.0003013,120]
[388858645,1759430162286,200.0,0.00032021,120]
[388859452,1759430258223,165.49,0.00016468,2]
[388859453,1759430376704,4093.0,0.00026,120]
[388859454,1759430462441,200.0,0.00031961,120]
[388859455,1759430528190,500.0,0.0001656,2]
[388859456,1759430579148,500.0,0.00030136,120]
[388859457,1759430598272,2000.0,0.00024769,120]
[388859458,1759430598729,2000.0,0.00025999,120]
[388859459,1759430599231,2000.0,0.00027341,120]
[388859460,1759430599780,2000.0,0.00028682,120]
[388859461,1759430600922,2076.666236,0.00030024,120]
[388859462,1759430693948,150.0,0.00030136,120]
[388859463,1759430704366,386.0,0.00029962,120]
[388859464,1759430706141,1310.75,0.00016433,2]
[388859465,1759430743520,666.0,0.00016415,3]
[388859466,1759430761246,200.0,0.00031962,120]
[388859467,1759430844505,2314.84,0.00016491,2]
[388859468,1759430885397,1000.0,0.00016438,2]
[388859470,1759431008759,271.0,0.00028366,120]
[388859471,1759431010051,271.0,0.00029785,120]
[388859484,1759431031791,-1000.0,0.000167,2]
[388859485,1759431031801,-2500.0,0.00016706,2]
[388859486,1759431031811,-195.0,0.00016713,2]
[388859487,1759431031821,-500.0,0.00016725,2]
[388859488,1759431031832,-2500.0,0.00016727,2]
[388859489,1759431031843,-2500.0,0.00016727,2]
[388859490,1759431031854,-195.0,0.0001675,2]
[388859491,1759431031865,-2000.0,0.0001675,2]
[388859492,1759431031876,-500.0,0.00016773,2]
[388859493,1759431031888,-392.13902642,0.00016773,2]
[388859494,1759431031899,-300.0,0.000168,6]
[388859495,1759431031911,-2000.0,0.00016807,2]
[388859496,1759431031922,-1200.0,0.0001686,2]
[388859497,1759431031934,-300.0,0.00016862,2]
[388859498,1759431031944,-550.0,0.00016899,2]
[388859499,1759431031954,-700.0,0.000169,6]
[388859500,1759431031964,-160.45965456,0.000169,2]
[388859501,1759431031973,-700.79885007,0.000169,2]
[388859502,1759431031982,-524.20787915,0.000169,2]
[388859503,1759431031993,-156.38261162,0.000169,2]
[388859504,1759431032003,-195.24302286,0.000169,2]
[388859506,1759431032013,-151.0,0.0001699,2]
[388859507,1759431032022,-151.0,0.0001699,2]
[388859508,1759431032031,-151.0,0.0001699,2]
[388859509,1759431032041,-151.0,0.0001699,2]
[388859510,1759431032051,-151.0,0.0001699,2]
[388859511,1759431032061,-151.0,0.0001699,2]
[388859513,1759431032070,-151.0,0.0001699,2]
[388859515,1759431032080,-151.0,0.0001699,2]
[388859517,1759431032090,-151.0,0.0001699,2]
[388859518,1759431032102,-151.0,0.0001699,2]
[388859519,1759431032113,-151.0,0.0001699,2]
[388859520,1759431032123,-151.0,0.0001699,2]
[388859521,1759431032133,-151.0,0.0001699,2]
[388859522,1759431032146,-200.0,0.0001699,2]
[388859523,1759431032158,-200.0,0.0001699,2]
[388859524,1759431032168,-500.0,0.0001699,2]
[388859525,1759431032179,-315.60292304,0.0001699,2]
[388859526,1759431032189,-721.3130685,0.0001699,2]
[388859527,1759431032199,-151.0,0.00016997,2]
[388859528,1759431032208,-236.37341521,0.00016997,2]
[388859529,1759431032218,-170.16,0.00016999,2]
[388859530,1759431032228,-2360.52,0.00016999,2]
[388859531,1759431032238,-1000.6116,0.00016999,2]
[388859532,1759431032249,-500.0,0.00016999,2]
[388859533,1759431032259,-259.17444691,0.00016999,2]
[388859534,1759431032269,-500.0,0.00016999,2]
[388859535,1759431032279,-19689.3595852,0.00017,2]
[388859536,1759431032294,-5200.0,0.00017,2]
[388859537,1759431032313,-2728.09794696,0.00017,2]
[388859538,1759431032324,-132677.96150769,0.00017,2]
[388859539,1759431032335,-31262.08313625,0.00017,2]
[388859540,1759431032360,-848.332832,0.00017,2]
[388859546,1759431038247,-1499.93408,0.00017,2]
[388859547,1759431038259,-1803.2610796,0.00017,2]
[388859548,1759431038286,-4224.58931338,0.00017,2]
[388859549,1759431038299,-2375.63805,0.00017,2]
[388859555,1759431038407,-259.17444691,0.00017,2]
[388859609,1759431039619,-4673.74250805,0.000169,2]
[388859610,1759431039673,-2420.71092656,0.000169,2]
[388859611,1759431039682,-1301.55464647,0.00017,2]
[388859612,1759431039781,-438.30511989,0.00017,2]
[388859613,1759431039832,-3514.49576385,0.00017,2]
[388859614,1759431039887,-551.24935575,0.00017,2]
[388859615,1759431039898,-1000.00000504,0.00017,2]
[388859650,1759431042773,-661.709808,0.00017,2]
[388859651,1759431042826,-1202.15,0.00017,2]
[388859652,1759431042838,-3139.55205029,0.00017,2]
[388859653,1759431042851,-2522.4676194,0.00017,2]
[388859654,1759431042867,-300.0,0.00017,2]
[388859693,1759431045863,-503.01904747,0.00017,2]
[388859694,1759431045915,-763.00258986,0.00017,2]
[388859695,1759431046539,-1934.31801024,0.00017,2]
[388859703,1759431047098,-57935.24696897,0.00017,2]
[388859704,1759431047125,-276.12866054,0.00017,2]
[388859705,1759431047146,-3409.79112469,0.00017,2]
[388859706,1759431053635,3051.85450481,0.00031962,120]
[388859707,1759431054758,173.0,0.000182,30]
[388859708,1759431054996,173.0,0.000182,30]
[388859709,1759431055230,173.0,0.000182,30]
[388859710,1759431060771,200.0,0.00031962,120]
[388859711,1759431084006,15481.12864171,0.0003,120]
[388859712,1759431254690,500.0,0.00030136,120]
[388859713,1759431307936,169.0,0.00029962,120]
[388859714,1759431361198,200.0,0.00031964,120]
[388859717,1759431570721,1000.0,0.00016438,2]
[388859718,1759431608797,250.0,0.00016241,2]
[388859719,1759431615291,170.0,0.00029953,120]
[388859720,1759431623869,188.0,0.000165,2]
[388859721,1759431628893,150.0,0.00030136,120]
[388859722,1759431654346,-1888.416,0.0001666,2]
[388859723,1759431654371,-2500.0,0.00016681,2]
[388859724,1759431654397,-500.0,0.00016702,2]
[388859725,1759431654421,-500.0,0.00016743,2]
[388859726,1759431654444,-2500.0,0.00016766,2]
[388859727,1759431654469,-1200.0,0.00016825,2]
[388859728,1759431654493,-1835.7,0.00016826,2]
[388859729,1759431654518,-300.0,0.00016898,2]
[388859730,1759431654541,-6385.00809114,0.000169,2]
[388859731,1759431654564,-156.3826116,0.000169,2]
[388859732,1759431654586,-524.20787915,0.000169,2]
[388859733,1759431654608,-500.0,0.00016983,2]
[388859734,1759431654631,-550.0,0.00016996,2]
[388859735,1759431654652,-4204.85,0.00016997,2]
[388859736,1759431654676,-151.0,0.00016997,2]
[388859737,1759431654701,-1245.0247492,0.00016997,2]
[388859738,1759431654724,-161.7382317,0.00016997,2]
[388859739,1759431654747,-5585.526318,0.00016997,2]
[388859740,1759431654769,-162.1201272,0.00016997,2]
[388859741,1759431654793,-151.0,0.00016997,2]
[388859742,1759431654816,-151.0,0.00016997,2]
[388859743,1759431654839,-151.0,0.00016997,2]
[388859744,1759431654863,-4768.945555,0.00016997,2]
[388859745,1759431654884,-500.0,0.00017,2]
[388859746,1759431654913,-8428.08043701,0.00017,2]
[388859747,1759431661646,200.0,0.00031976,120]
[388859748,1759431678420,-27000.0,0.00017,2]
[388859749,1759431704492,-1510.733,0.0001666,2]
[388859750,1759431704527,-16234.77182971,0.000169,2]
[388859751,1759431704562,-254.49517029,0.00017,2]
[388859752,1759431713034,1079.193366,0.00016576,2]
[388859753,1759431727637,-18000.0,0.00017,2]
[388859757,1759431842263,500.0,0.00030136,120]
[388859758,1759431914444,150.0,0.00015682,2]
[388859759,1759431914578,150.0,0.00015682,2]
[388859760,1759431914717,150.0,0.00015682,2]
[388859761,1759431920627,150.0,0.00015682,2]
[388859762,1759431920726,150.0,0.00015682,2]
[388859763,1759431920773,150.0,0.00016553,2]
[388859764,1759431934691,150.0,0.00015682,2]
[388859765,1759431934743,150.0,0.00016553,2]
[388859766,1759431934901,150.0,0.00015682,2]
[388859767,1759431936231,150.0,0.00015682,2]
[388859768,1759431961007,200.0,0.00031976,120]
[388859769,1759431961878,50000.0,0.00031976,60]
[388859770,1759431967910,50000.0,0.00031976,61]
[388859771,1759431971621,50000.0,0.00031976,62]
[388859772,1759431975561,50000.0,0.00031976,63]
[388859773,1759431978883,50000.0,0.00031976,64]
[388859774,1759431991023,1682.9,0.0001635,2]
[388859775,1759431993319,2803.35770574,0.00031976,62]
[388859776,1759432014559,250.0,0.0003,120]
[388859777,1759432015898,50000.0,0.00031976,60]
[388859778,1759432019173,50000.0,0.00031976,61]
[388859779,1759432022960,50000.0,0.00031976,62]
[388859780,1759432027639,50000.0,0.00031976,63]
[388859781,1759432031127,50000.0,0.00031976,64]
[388859782,1759432036687,263.2,8.192e-05,2]
[388859783,1759432036819,263.2,8.623e-05,2]
[388859784,1759432036984,263.2,9.054e-05,2]
[388859785,1759432037208,263.2,9.485e-05,2]
[388859786,1759432037451,263.2,9.917e-05,2]
[388859787,1759432037659,263.2,0.00010348,2]
[388859788,1759432037832,263.2,0.00010779,2]
[388859789,1759432038090,263.2,0.0001121,2]
[388859790,1759432038300,198.87701262,0.00011641,2]
[388859791,1759432038325,64.32298738,0.00011641,2]
[388859792,1759432038536,263.2,0.00012072,2]
[388859793,1759432038762,263.2,0.00012503,2]
[388859794,1759432039032,263.2,0.00012935,2]
[388859795,1759432039303,263.2,0.00013366,2]
[388859796,1759432039485,263.2,0.00013797,2]
[388859797,1759432039706,263.2,0.00014228,2]
[388859798,1759432039998,263.2,0.00014659,2]
[388859799,1759432040669,263.2,0.0001509,2]
[388859800,1759432040770,263.2,0.00015522,2]
[388859801,1759432040898,263.2,0.00015953,2]
[388859802,1759432040979,263.2,0.00016384,2]
[388859803,1759432057162,50000.0,0.00031976,60]
[388859804,1759432060870,50000.0,0.00031976,61]
[388859805,1759432063904,50000.0,0.00031976,62]
[388859806,1759432067377,50000.0,0.00031976,63]
[388859807,1759432071224,50000.0,0.00031976,64]
[388859808,1759432080540,50000.0,0.00031976,60]
[388859809,1759432084392,50000.0,0.00031976,61]
[388859810,1759432087731,50000.0,0.00031976,62]
[388859811,1759432090989,50000.0,0.00031976,63]
[388859812,1759432094464,50000.0,0.00031976,64]
[388859813,1759432158241,184.0,0.000155,2]
[388859814,1759432177211,2030.8,0.00016441,2]
[388859815,1759432187635,10004.93,0.00031976,60]
[388859816,1759432188315,1194.97,0.00016281,2]
[388859817,1759432202671,50000.0,0.00031976,60]
[388859818,1759432209530,466.0,0.0003,120]
[388859819,1759432214102,50000.0,0.00031976,61]
[388859820,1759432217472,50000.0,0.00031976,62]
[388859821,1759432221143,50000.0,0.00031976,63]
[388859822,1759432224900,50000.0,0.00031976,64]
[388859842,1759432231880,-181.0,0.0001668,2]
[388859843,1759432231891,-250.0,0.0001669,2]
[388859844,1759432231900,-400.0,0.000167,6]
[388859845,1759432231910,-500.0,0.0001675,2]
[388859846,1759432231920,-900.0,0.000168,6]
[388859847,1759432231930,-1120.0,0.00016829,2]
[388859848,1759432231939,-300.0,0.00016829,2]
[388859849,1759432231949,-1200.0,0.00016829,2]
[388859850,1759432231959,-961.36,0.00016869,2]
[388859851,1759432231968,-524.20787915,0.00016899,2]
[388859852,1759432231978,-1300.0,0.000169,6]
[388859853,1759432231988,-160.45965455,0.000169,2]
[388859854,1759432231997,-156.3826116,0.000169,2]
[388859855,1759432232006,-5840.8773852,0.000169,2]
[388859856,1759432232015,-1181.4600003,0.00016967,2]
[388859857,1759432232024,-151.0,0.00016997,2]
[388859858,1759432232035,-282.66451898,0.00016999,2]
[388859859,1759432232044,-161.85325528,0.00016999,2]
[388859860,1759432232053,-329.41449212,0.00016999,2]
[388859861,1759432232063,-500.0,0.00016999,2]
[388859862,1759432232072,-268.38962684,0.00016999,2]
[388859863,1759432232082,-557.53896886,0.00016999,2]
[388859864,1759432232091,-180.92836811,0.00016999,2]
[388859865,1759432232100,-76562.81581281,0.00017,2]
[388859866,1759432232119,-2257.69757362,0.00017,2]
[388859867,1759432232130,-24552.91616328,0.00017,2]
[388859868,1759432232145,-598.699518,0.00017,2]
[388859869,1759432232244,-1000.0,0.00017,2]
[388859870,1759432232255,-5543.03145365,0.00017,2]
[388859871,1759432232270,-1781.02424034,0.00017,2]
[388859872,1759432232283,-10580.47199474,0.00017,2]
[388859874,1759432232292,-29584.64440726,0.00017,2]
[388859876,1759432232303,-40444.6972977,0.00017,2]
[388859878,1759432232313,-30227.2406592,0.00017,2]
[388859883,1759432232344,-5673.35055063,0.00017,2]
[388859885,1759432232355,-294.46137287,0.00017,2]
[388859888,1759432232378,-813.876003,0.00017,2]
[388859890,1759432232389,-12026.0,0.00017,2]
[388859893,1759432232400,-244468.83646202,0.00017,2]
[388859896,1759432232428,-732.4116,0.00017,2]
[388859897,1759432232438,-12983.37117157,0.00017,2]
[388859900,1759432232450,-32273.93729556,0.00017,2]
[388859902,1759432232462,-3615.5119,0.00017,2]
[388859911,1759432237848,-10853.16099599,0.00017,2]
[388859912,1759432237952,-970.16738802,0.00017,2]
[388859913,1759432238061,-24424.88815407,0.00017,2]
[388859914,1759432238116,-606.96953588,0.00017,2]
[388859915,1759432238128,-428.61941707,0.00017,2]
[388859975,1759432241561,-26959.57841623,0.00017,2]
[388859976,1759432241573,-999.99998349,0.00017,2]
[388859977,1759432241588,-15963.69090889,0.00017,2]
[388859978,1759432241659,-2411.0,0.00017,2]
[388859983,1759432242664,50000.0,0.00031976,60]
[388859988,1759432243079,-3625.1,0.00017,2]
[388859989,1759432243108,-60267.49999999,0.00017,2]
[388859990,1759432243120,-5584.65762278,0.00017,2]
[388859991,1759432243129,-903.53664767,0.00017,9]
[388859992,1759432243139,-500.0,0.00017,2]
[388859993,1759432243148,-151.0,0.00017,2]
[388859994,1759432243158,-417.6844645,0.00017,2]
[388859995,1759432243167,-151.0,0.00017,2]
[388859996,1759432243176,-250.0,0.00017,2]
[388859997,1759432243185,-1073.93199,0.00017,2]
[388859998,1759432243195,-1073.93199,0.00017,2]
[388859999,1759432243204,-1073.93199,0.00017,2]
[388860000,1759432243213,-1073.93199,0.00017,2]
[388860001,1759432243222,-1073.93198,0.00017,2]
[388860002,1759432243231,-1073.93198,0.00017,2]
[388860003,1759432243241,-250.56161002,0.00017109,2]
[388860004,1759432243252,-7832.60901008,0.0001716,2]
[388860006,1759432243431,-20276.78608743,0.0001716,2]
[388860007,1759432243441,-174.83,0.000172,2]
[388860008,1759432243451,-201.56431263,0.000172,2]
[388860009,1759432243461,-150.75760875,0.000172,2]
[388860010,1759432243472,-201.52108444,0.000172,2]
[388860012,1759432243483,-500.0,0.000172,2]
[388860014,1759432243492,-150.0,0.000172,2]
[388860015,1759432243502,-150.0,0.000172,2]
[388860016,1759432243511,-150.53374238,0.000172,2]
[388860017,1759432243524,-200.96677742,0.000172,2]
[388860018,1759432243534,-150.0,0.000172,2]
[388860019,1759432243543,-200.0,0.000172,2]
[388860020,1759432243554,-150.0,0.000172,2]
[388860021,1759432243564,-150.0,0.000172,2]
[388860022,1759432243575,-150.0,0.000172,2]
[388860023,1759432243584,-150.31187955,0.000172,2]
[388860024,1759432243593,-150.0,0.000172,2]
[388860025,1759432243603,-150.0,0.000172,2]
[388860026,1759432243612,-150.0,0.000172,2]
[388860027,1759432243622,-500.0,0.000172,2]
[388860028,1759432243631,-500.0,0.000172,2]
[388860029,1759432243641,-1058.0,0.000172,2]
[388860030,1759432243650,-150.0,0.000172,2]
[388860031,1759432243660,-500.0,0.000172,2]
[388860032,1759432243669,-255.55498601,0.000172,2]
[388860033,1759432243678,-150.0,0.000172,2]
[388860034,1759432243688,-150.0,0.000172,2]
[388860035,1759432243697,-150.0,0.000172,2]
[388860036,1759432243707,-500.0,0.000172,2]
[388860037,1759432243717,-500.0,0.000172,2]
[388860038,1759432243726,-150.0,0.000172,2]
[388860039,1759432243735,-150.0,0.000172,2]
[388860040,1759432243745,-500.0,0.000172,2]
[388860041,1759432243756,-500.0,0.000172,2]
[388860042,1759432243765,-150.0,0.000172,2]
[388860043,1759432243775,-150.0,0.000172,2]
[388860044,1759432243784,-150.0,0.000172,2]
[388860045,1759432243793,-150.0,0.000172,2]
[388860046,1759432243803,-500.0,0.000172,2]